[Event "DSOL-KO 2022"]
[Site "Germany"]
[Date "2022.05.13"]
[Round "2"]
[White "Körösi, Levi"]
[Black "Hoffmann, Tim"]
[Result "0-1"]
[ECO "B92"]
[WhiteElo "1620"]
[BlackElo "1684"]
[Annotator "NA RC COMBH"]
[PlyCount "60"]
[EventDate "2022.01.31"]
[EventType "team-tourn"]
[EventCountry "GER"]
[SourceTitle "playchess.com"]
[Source "ChessBase"]
[SourceQuality "1"]
[WhiteTeam "SG Turm Leipzig II"]
[BlackTeam "SF Greiz"]
[TimeControl "2700+15"]

1. e4 c5 2. Nf3 d6 3. d4 cxd4 4. Nxd4 Nf6 5. Nc3 a6 6. Be2 e5 7. Nf3 Be7 8. O-O O-O 9. Be3 b5 10. a3 Bb7 11. Bd3 Nbd7 12. Qd2 Ng4 13. Bg5 f6 14. Bh4 Nb6 15. h3 Nh6 16. b3 Rc8 17. a4 b4 18. Nd1 d5 19. exd5 Nxd5 20. Bc4 Kh8 21. Qe2 Nf4 22. Qe3 Bc5 23. Qe1 Bxf3 24. gxf3 Nxh3+ 25. Kh2 Nf4 26. Bxa6 Rc6 27. Bb5 Qd7 28. Ne3 Bxe3 29. fxe3 Qh3+ 30. Kg1 Qg2# 0-1

[Event "DSOL-KO 2022"]
[Site "Germany"]
[Date "2022.05.09"]
[Round "2"]
[White "Thomes, Alfons"]
[Black "Wolff, Manfred"]
[Result "1-0"]
[ECO "B15"]
[WhiteElo "1620"]
[BlackElo "1620"]
[Annotator "NA COMBH"]
[PlyCount "65"]
[EventDate "2022.01.31"]
[EventType "team-tourn"]
[EventCountry "GER"]
[SourceTitle "playchess.com"]
[Source "ChessBase"]
[SourceQuality "1"]
[WhiteTeam "ESV Rot-Weiß Göttingen III"]
[BlackTeam "Findorffer SF"]
[TimeControl "2700+15"]

1. e4 c6 2. d4 d5 3. Nc3 dxe4 4. Be3 Nf6 5. h3 Bf5 6. Bc4 e6 7. a3 Bd6 8. Nge2 O-O 9. Ng3 Bg6 10. Qd2 Re8 11. Bg5 Qc7 12. Qe3 Nbd7 13. Ngxe4 e5 14. d5 b6 15. dxc6 Qxc6 16. Bb5 Qc7 17. O-O-O Bc5 18. Nxc5 bxc5 19. Bxf6 gxf6 20. Rxd7 Qc8 21. Rhd1 Rf8 22. Nd5 Qb8 23. a4 Kg7 24. Qf3 f5 25. Qc3 a6 26. Bc4 Ra7 27. Nf4 Kh6 28. Rxa7 Qxa7 29. Qxe5 f6 30. Qe3 Re8 31. Ne6+ Kh5 32. Be2+ Kh4 33. Qg3# 1-0

[Event "DSOL-KO 2022"]
[Site "Germany"]
[Date "2022.05.11"]
[Round "2"]
[White "Tietz, Luka"]
[Black "Finder, Adrianos"]
[Result "1/2-1/2"]
[ECO "B07"]
[WhiteElo "1620"]
[BlackElo "1577"]
[Annotator "NA RC COMBH"]
[PlyCount "117"]
[EventDate "2022.01.31"]
[EventType "team-tourn"]
[EventCountry "GER"]
[SourceTitle "playchess.com"]
[Source "ChessBase"]
[SourceQuality "1"]
[TimeControl "2700+15"]

1. e4 d6 2. Bc4 Nf6 3. Nc3 c6 4. d4 Qa5 5. Bd2 Qc7 6. Nf3 Bg4 7. h3 Bxf3 8. Qxf3 e5 9. d5 Be7 10. dxc6 bxc6 11. Bg5 Nbd7 12. O-O O-O 13. Ne2 Rab8 14. Rab1 Nc5 15. b4 Ncxe4 16. Ng3 Nxg5 17. Qf5 Nd5 18. Bd3 Nxb4 19. Ne4 Nxd3 20. Rxb8 Qxb8 21. cxd3 Nxe4 22. dxe4 g6 23. Qg4 d5 24. Qe2 Qb4 25. Qe3 Bc5 26. a3 Qa5 27. Qg3 Re8 28. Qg4 Rd8 29. Qf3 Bxa3 30. Ra1 dxe4 31. Rxa3 exf3 32. Rxa5 Ra8 33. gxf3 f6 34. Ra6 Kf7 35. Rxc6 a5 36. Rc7+ Kg8 37. Rc6 f5 38. Rc5 a4 39. Rxe5 a3 40. Re1 h5 41. Ra1 a2 42. f4 Kh7 43. Kf1 Kh6 44. h4 Ra4 45. Ke2 g5 46. fxg5+ Kg6 47. Kf3 Rxh4 48. Rxa2 Kxg5 49. Ra8 Rf4+ 50. Kg3 h4+ 51. Kh3 Rf3+ 52. Kg2 Kg4 53. Rg8+ Kf4 54. Rh8 h3+ 55. Rxh3 Rxh3 56. Kxh3 Kf3 57. Kh4 f4 58. Kg5 Kxf2 59. Kxf4 1/2-1/2

[Event "DSOL-KO 2022"]
[Site "Germany"]
[Date "2022.05.12"]
[Round "2"]
[White "Zipeng, Julian Luo"]
[Black "Glaubitz, Tim"]
[Result "1-0"]
[ECO "C50"]
[WhiteElo "1620"]
[BlackElo "1653"]
[Annotator "NA RC COMBH"]
[PlyCount "27"]
[EventDate "2022.01.31"]
[EventType "team-tourn"]
[EventCountry "GER"]
[SourceTitle "playchess.com"]
[Source "ChessBase"]
[SourceQuality "1"]
[WhiteTeam "SC Bendorf"]
[BlackTeam "SC Bad Salzdetfurth III"]
[TimeControl "2700+15"]

1. e4 e5 2. Nf3 Nc6 3. Bc4 f6 4. Nc3 Bc5 5. O-O Nge7 6. a3 d5 7. Nxd5 Bg4 8. b4 Bb6 9. h3 Bxf3 10. Qxf3 Nd4 11. Qd1 O-O 12. Nxf6+ Kh8 13. Nxh7 Kxh7 14. Qh5# 1-0

[Event "DSOL-KO 2022"]
[Site "Germany"]
[Date "2022.05.10"]
[Round "2"]
[White "Jacoby, Florian"]
[Black "Sander, Johann"]
[Result "1/2-1/2"]
[ECO "B06"]
[WhiteElo "1618"]
[BlackElo "1514"]
[Annotator "NA RC COMBH"]
[PlyCount "29"]
[EventDate "2022.01.31"]
[EventType "team-tourn"]
[EventCountry "GER"]
[SourceTitle "playchess.com"]
[Source "ChessBase"]
[SourceQuality "1"]
[WhiteTeam "Brackweder SK I"]
[BlackTeam "Hamburger SK II"]
[TimeControl "2700+15"]

1. e4 g6 2. d4 Bg7 3. Nc3 d6 4. Nf3 Nd7 5. Be3 a6 6. Be2 e6 7. O-O Ne7 8. Qd2 O-O 9. Bh6 b5 10. Bxg7 Kxg7 11. a3 Bb7 12. Rad1 Rc8 13. Rfe1 h6 14. h3 Rh8 15. Nh2 1/2-1/2

[Event "DSOL-KO 2022"]
[Site "Germany"]
[Date "2022.05.12"]
[Round "2"]
[White "Kasperczyk, Thomas"]
[Black "Mörke, Niklas"]
[Result "0-1"]
[ECO "D00"]
[WhiteElo "1608"]
[BlackElo "1742"]
[Annotator "NA RC COMBH"]
[PlyCount "90"]
[EventDate "2022.01.31"]
[EventType "team-tourn"]
[EventCountry "GER"]
[SourceTitle "playchess.com"]
[Source "ChessBase"]
[SourceQuality "1"]
[WhiteTeam "SC Bendorf"]
[BlackTeam "SC Bad Salzdetfurth III"]
[TimeControl "2700+15"]

1. d4 e6 2. Bf4 Nf6 3. e3 d5 4. Nd2 Bd6 5. Bxd6 cxd6 6. Ngf3 O-O 7. Bd3 Nc6 8. c3 e5 9. e4 dxe4 10. Nxe4 Nxe4 11. Bxe4 d5 12. Bc2 e4 13. Ne5 Nxe5 14. dxe5 Be6 15. Qd4 Qg5 16. g3 f6 17. exf6 Rxf6 18. Qe3 Qh5 19. Bd1 Bg4 20. Bxg4 Qxg4 21. h3 Qe6 22. O-O-O b6 23. Rdf1 Rf3 24. Qe2 Raf8 25. h4 Qf6 26. Qb5 Rd3 27. f4 Qg6 28. Rhg1 Qg4 29. Qb3 Qe2 30. Qc2 Qe3+ 31. Kb1 Rd2 32. Qb3 Qd3+ 33. Kc1 e3 34. Re1 Re8 35. Qa4 Re4 36. Qb3 e2 37. f5 Qe3 38. Kb1 Qxg1 39. a4 Qxe1+ 40. Ka2 Qxg3 41. a5 e1=Q 42. axb6 axb6 43. Qxb6 Rxb2+ 44. Kxb2 Qgxc3+ 45. Ka2 Ra4# 0-1

[Event "DSOL-KO 2022"]
[Site "Germany"]
[Date "2022.05.12"]
[Round "2"]
[White "Drexler, Levi"]
[Black "Wimmer, Claus"]
[Result "1-0"]
[ECO "C50"]
[WhiteElo "1604"]
[BlackElo "1873"]
[Annotator "NA RC COMBH"]
[PlyCount "69"]
[EventDate "2022.01.31"]
[EventType "team-tourn"]
[EventCountry "GER"]
[SourceTitle "playchess.com"]
[Source "ChessBase"]
[SourceQuality "1"]
[WhiteTeam "SC Bad Salzdetfurth III"]
[BlackTeam "SC Bendorf"]
[TimeControl "2700+15"]

1. e4 e5 2. Nf3 Nc6 3. Bc4 Bc5 4. c3 d6 5. d3 h6 6. Be3 Bb6 7. Nbd2 f5 8. Bxb6 axb6 9. O-O f4 10. b4 Bg4 11. Qb3 Qd7 12. Bxg8 O-O-O 13. Bd5 g5 14. h3 Ne7 15. hxg4 Nxd5 16. Qxd5 Qxg4 17. Rfb1 h5 18. Kf1 h4 19. a4 h3 20. gxh3 Rxh3 21. Ke2 Qh5 22. a5 g4 {[#]} 23. Kd1 $1 gxf3 24. Kc2 Rh2 25. a6 bxa6 26. Rxa6 Kd7 27. Rg1 Rg2 {[#]} 28. Raa1 (28. Rh1 $142 $3 {[%mdl 512]} Qg6 29. Ra7) 28... Rdg8 29. Rh1 Qg6 30. Rhf1 (30. Nc4 $142 Ke7 31. Qb7) 30... Qg4 31. Qf7+ Kc6 32. b5+ Kb7 33. Qd5+ Kc8 34. Ra8+ Kd7 35. Qf7# 1-0

[Event "DSOL-KO 2022"]
[Site "Germany"]
[Date "2022.05.10"]
[Round "2"]
[White "Kuepper, Victor"]
[Black "Kurley, Roman"]
[Result "0-1"]
[ECO "B13"]
[WhiteElo "1603"]
[BlackElo "1846"]
[Annotator "NA RC COMBH"]
[PlyCount "122"]
[EventDate "2022.01.31"]
[EventType "team-tourn"]
[EventCountry "GER"]
[SourceTitle "playchess.com"]
[Source "ChessBase"]
[SourceQuality "1"]
[WhiteTeam "Brackweder SK I"]
[BlackTeam "Hamburger SK II"]
[TimeControl "2700+15"]

1. e4 c6 2. d4 d5 3. exd5 cxd5 4. Bb5+ Nc6 5. c3 Bf5 6. Nf3 Qb6 7. Ba4 e6 8. O-O Bd6 9. Nbd2 Nf6 10. Re1 O-O 11. Nf1 Ne4 12. Nh4 Ne7 13. Bc2 Qc6 14. Nxf5 Nxf5 15. f3 (15. Bxe4 $16 dxe4 16. Qg4) 15... Nf6 16. Bxf5 exf5 17. Bg5 Nh5 18. Ne3 h6 19. Bh4 (19. f4 $1 $14 Nxf4 20. Bxf4 Bxf4 21. Nxf5) 19... g5 (19... g6 $11) 20. Bf2 Ng7 21. Qd3 Qd7 22. Kh1 (22. Nxd5 $16 Bxh2+ 23. Kxh2 Qxd5 24. c4) 22... Bc7 23. Re2 (23. b3 $142) 23... Rae8 24. Rae1 Kh8 25. Nc2 Re6 26. Rxe6 fxe6 27. Qd2 Nh5 28. Nb4 Qd6 29. g3 Nf6 30. Nd3 Nd7 31. f4 g4 {[#]} (31... Nf6 $1 $14) 32. Ne5 (32. Nc5 $1 $16 Re8 33. Nxb7) 32... Kg7 33. Nd3 b6 34. Qe3 Re8 35. Kg2 Nf6 36. Qe2 Ne4 37. Be3 h5 38. Ne5 (38. Nf2 $15) 38... Rh8 39. Qb5 h4 40. gxh4 Qe7 41. Qd7 Qxd7 42. Nxd7 Rxh4 43. Ne5 Rh3 44. Bg1 (44. Nd3 $142) 44... Bxe5 45. fxe5 Rd3 46. Re2 Kg6 47. Be3 Ng5 $19 48. Bxg5 Kxg5 49. Kf2 f4 50. Rc2 Kf5 51. Kg2 Ke4 52. Rf2 Rh3 53. Re2+ Kd3 54. Rf2 Ke3 55. Rc2 f3+ 56. Kg1 g3 57. hxg3 Rxg3+ 58. Kf1 Rh3 59. Kg1 b5 60. a3 a5 61. b4 a4 0-1

[Event "DSOL-KO 2022"]
[Site "Germany"]
[Date "2022.05.11"]
[Round "2"]
[White "Raschke, Joris"]
[Black "Retzlaff, Wolfgang"]
[Result "1-0"]
[ECO "B19"]
[WhiteElo "1589"]
[BlackElo "1597"]
[Annotator "NA RC COMBH"]
[PlyCount "107"]
[EventDate "2022.01.31"]
[EventType "team-tourn"]
[EventCountry "GER"]
[SourceTitle "playchess.com"]
[Source "ChessBase"]
[SourceQuality "1"]
[TimeControl "2700+15"]

1. e4 c6 2. d4 d5 3. Nc3 dxe4 4. Nxe4 Bf5 5. Ng3 Bg6 6. h4 h6 7. h5 Bh7 8. Nf3 Nd7 9. Bd3 Bxd3 10. Qxd3 e6 11. Bf4 Ngf6 12. O-O Nd5 13. Bd2 Bd6 14. Ne4 N7f6 15. c4 Nxe4 16. Qxe4 Nf6 17. Qh4 O-O 18. Bc3 Be7 19. Rfd1 Nd5 20. Qe4 Nxc3 21. bxc3 Bf6 22. Rab1 Rb8 23. Rd2 Qa5 24. Rb3 Qc7 25. Rdb2 Rfd8 26. Kf1 Rd7 27. Ne1 Qh2 28. Qf3 Qd6 29. Nd3 b6 30. Nc5 Re7 31. Ne4 Qd7 32. Nxf6+ gxf6 33. Qxf6 Kh7 34. c5 b5 35. a4 a6 36. axb5 axb5 37. c4 Qa7 38. cxb5 cxb5 39. Qf3 Qa6 40. Qd3+ Kg7 41. Ra3 Qc6 42. Qg3+ Kh7 43. Qxb8 Qd5 44. Qd6 Qc4+ 45. Re2 Qc1+ 46. Re1 Qxa3 47. Qxe7 Qd3+ 48. Kg1 Kg7 49. Qh4 Qd2 50. Qg3+ Kh7 51. Qe3 Qb4 52. c6 Qd6 53. Rc1 Qc7 54. Qe5 1-0

[Event "DSOL-KO 2022"]
[Site "Germany"]
[Date "2022.05.11"]
[Round "2"]
[White "Goldmann, David"]
[Black "Kaiser, Gerhard"]
[Result "1/2-1/2"]
[ECO "B23"]
[WhiteElo "1585"]
[BlackElo "1950"]
[Annotator "TA"]
[PlyCount "113"]
[EventDate "2022.01.31"]
[EventType "team-tourn"]
[EventCountry "GER"]
[SourceTitle "playchess.com"]
[Source "ChessBase"]
[SourceQuality "1"]
[TimeControl "2700+15"]

{[%evp 10,113,0,-6,0,0,0,0,0,0,0,-26,-10,-11,0,2,83,75,77,54,51,52,51,0,42,-5,0,-50,-52,-123,-118,-107,64,0,159,176,169,179,154,104,518,447,853,961,928,472,460,435,428,434,623,-202,-202,-198,-183,-184,-181,-178,-133,-208,-130,-182,14,0,0,0,16,8,8,8,8,0,11,0,0,0,0,0,0,0,0,-8,-8,-80,0,-8,0,0,0,0,0,-80,-80,-83,-80,-80,-80,-80,0,0,0,-8,-8,-8,-8,-8]} 1. e4 c5 2. Nc3 e6 3. g3 d5 4. exd5 exd5 5. Bg2 Nf6 6. d3 h6 {Inhibits Bg5. B23: Closed Sicilian: Lines without g3.} 7. Nge2 d4 8. Ne4 Nxe4 9. Bxe4 Bd6 10. Bf4 O-O {[#]} 11. Qd2 $146 {[%cal Of4h6]} ({Predecessor:} 11. O-O Nc6 12. Bxd6 Qxd6 13. Bg2 Bg4 14. f3 Bd7 15. Qd2 Rfe8 16. Rfe1 Nb4 17. Nf4 {½-½ (37) Rozsa,S (1972)-Balvanyos,I (2143) Budapest 2011}) 11... Nc6 12. Bxh6 {[%cal Oh2h4]} Ne5 (12... Be7 $1 $11) 13. Bf4 Rb8 14. h4 Bg4 15. Bxe5 Bxe5 16. f3 (16. Nf4 $14) 16... Be6 {This bishop pair is nice.} (16... f5 $5 {[%cal Rf5e4]} 17. fxg4 fxe4 18. dxe4 Qf6 $11) 17. f4 (17. g4 $14) 17... Bc7 $11 18. h5 (18. f5 $11 Bd5 19. O-O-O) 18... Re8 19. O-O-O (19. f5 $15 Bd5 20. O-O-O (20. h6 Ba5 $17)) 19... Ba5 $17 (19... Bxa2 $6 20. f5 $11) 20. c3 Bxa2 $2 (20... Bg4 $17 21. Rde1 Qf6) 21. b4 (21. h6 $1 $14) 21... dxc3 $2 22. Qxa2 $16 {Chess con chili.} cxb4 23. h6 Qb6 {aiming for ...b3.} 24. Kc2 ({Better is} 24. Bd5 $1 {[%cal Rd5f7]} Re7 25. Rh2) 24... Qb5 $2 {[%mdl 8192]} (24... gxh6 $16 25. Nc1 Rbd8) 25. Nd4 (25. h7+ Kh8 $11) 25... Qd7 {[#]} (25... b3+ $142 26. Qxb3 Qxb3+ 27. Nxb3 Bb6 28. hxg7 Rbc8) 26. hxg7 $1 $18 Bb6 27. Nf5 Qxf5 28. Rh8+ Kxg7 {[%cal Oe8e4]} 29. Rxe8 (29. Bxf5 Re2+ 30. Kb3 Rxa2 31. Rh7+ (31. Rxb8 Rb2+ 32. Ka4 c2 $11) 31... Kf6 32. Kxa2 Kxf5 $14) 29... Qg4 (29... Rxe8 $142 30. Bxf5 Re2+ 31. Kb3 Rxa2 32. Kxa2 Kf6) 30. Bf3 $4 {[%mdl 8192] [#]} (30. Rxb8 $18 {and all is fine.} Qe2+ 31. Kb3 Qxd1+ 32. Kxb4) 30... Qxf3 $1 $19 31. Re7 (31. Rxb8 $2 Qe2+ 32. Kb3 Qe6+ 33. Kxb4 Qxa2 $19) 31... Qf2+ ({Worse is} 31... Rf8 32. Rde1 $17) 32. Kb1 Qxa2+ 33. Kxa2 {[%mdl 4096] Endgame KRR-KRB} Kf6 34. Re4 (34. Re5 $17) 34... Bc5 35. Kb3 (35. Rc4 $17 {is a better defense.} Bf8 36. Kb3) 35... b5 $2 ({Black should try} 35... a5 $19 {Strongly threatening ...b5.} 36. d4 Bd6) 36. Ra1 Rc8 {[%cal Oc3c2]} 37. Re2 Rd8 38. Ra6+ Bb6 39. Kxb4 Rxd3 40. g4 Rg3 41. g5+ Kf5 42. Kxb5 Kxf4 43. Ra4+ Kxg5 44. Rc4 f5 45. Rc8 f4 46. Rc2 (46. Kc4 $11 {remains equal.}) 46... Kg4 (46... Bd4 $1 $17 {Threatens to win with ...Rd3.} 47. Rf8 Bg7) 47. Rg8+ Kf5 48. Rf8+ Ke4 49. Kc4 Re3 50. Rf2 (50. Re8+ $11 Kf3 51. Rxc3) 50... Bc7 $1 $17 {...f3 is the strong threat.} 51. Ra8 f3 ({Of course not} 51... Bb6 52. Re8+ Kf5 53. Rf8+ Ke5 54. R2xf4 $11) 52. Rxa7 {[#]} Be5 {And now ...Re2 would win.} ({Much weaker is} 52... Re2 53. Rxf3 Kxf3 54. Rxc7 $11) 53. Rf7 {[#]} Bg3 (53... Re1 $1 $17) 54. Re7+ $11 {The position is equal.} Kf4 55. Rxe3 {[%mdl 64] Remove Defender} Kxe3 56. Rxf3+ Kxf3 57. Kxc3 {Quite a comeback for White.  Weighted Error Value: White=0.40/Black=0.49} 1/2-1/2

[Event "DSOL-KO 2022"]
[Site "Germany"]
[Date "2022.05.10"]
[Round "2"]
[White "Tonev, Vasil"]
[Black "Kretschmer, Oliver"]
[Result "1-0"]
[ECO "A03"]
[WhiteElo "1549"]
[BlackElo "1630"]
[Annotator "NA RC COMBH"]
[PlyCount "63"]
[EventDate "2022.01.31"]
[EventType "team-tourn"]
[EventCountry "GER"]
[SourceTitle "playchess.com"]
[Source "ChessBase"]
[SourceQuality "1"]
[WhiteTeam "SV Horrem"]
[BlackTeam "Lok Raw Cottbus"]
[TimeControl "2700+15"]

1. f4 c6 2. Nf3 d5 3. b3 Nf6 4. e3 Bg4 5. Be2 e6 6. Ne5 Bxe2 7. Qxe2 Nbd7 8. Bb2 Qc7 9. O-O Bd6 10. d4 Ne4 11. Nxd7 Qxd7 12. Nd2 Nxd2 13. Qxd2 O-O-O 14. c4 dxc4 15. bxc4 Rhg8 16. Qc2 h5 17. e4 Bc7 18. Rad1 g5 19. f5 g4 20. d5 exd5 21. cxd5 cxd5 22. Rxd5 Qe7 23. f6 Qe6 24. Rc5 Qb6 25. Be5 Rd6 26. Bxd6 Qxd6 27. Rc1 Qxh2+ 28. Kf1 Qh1+ 29. Kf2 Qh4+ 30. Ke2 Qxf6 31. Rxc7+ Kb8 32. Rc8+ 1-0

[Event "DSOL-KO 2022"]
[Site "Germany"]
[Date "2022.05.10"]
[Round "2"]
[White "Huran, Ahmad"]
[Black "Bast, Patrick"]
[Result "1-0"]
[ECO "B01"]
[WhiteElo "1506"]
[BlackElo "1510"]
[Annotator "NA RC COMBH"]
[PlyCount "59"]
[EventDate "2022.01.31"]
[EventType "team-tourn"]
[EventCountry "GER"]
[SourceTitle "playchess.com"]
[Source "ChessBase"]
[SourceQuality "1"]
[WhiteTeam "SV Lurup Hamburg II"]
[BlackTeam "SF Ochtendung I"]
[TimeControl "2700+15"]

1. e4 d5 2. exd5 Qxd5 3. Nc3 Qd8 4. d4 e6 5. Nf3 Nc6 6. Bd3 Nf6 7. O-O h6 8. h3 Bd6 9. Ne4 Nxe4 10. Bxe4 Bd7 11. c3 Qe7 12. a4 O-O 13. Re1 Rab8 14. Bc2 Qd8 15. Qd3 f5 16. Bb3 Qf6 17. Ne5 Be8 18. Nxc6 bxc6 19. Rxe6 Qf7 20. Bc4 Bd7 21. Rxd6 cxd6 22. Bxf7+ Rxf7 23. Qg3 Rf6 24. b4 Re8 25. Bf4 d5 26. Be5 Rf7 27. Qg6 Be6 28. Bxg7 Rxg7 29. Qxe8+ Kh7 30. Qxe6 1-0

[Event "DSOL-KO 2022"]
[Site "Germany"]
[Date "2022.05.10"]
[Round "2"]
[White "Kort, Felix"]
[Black "Schreiber, Florian"]
[Result "1-0"]
[ECO "E32"]
[WhiteElo "1464"]
[BlackElo "1845"]
[Annotator "NA RC COMBH"]
[PlyCount "55"]
[EventDate "2022.01.31"]
[EventType "team-tourn"]
[EventCountry "GER"]
[SourceTitle "playchess.com"]
[Source "ChessBase"]
[SourceQuality "1"]
[WhiteTeam "Hamburger SK II"]
[BlackTeam "Brackweder SK I"]
[TimeControl "2700+15"]

1. d4 Nf6 2. c4 e6 3. Nc3 Bb4 4. Qc2 O-O 5. e4 d5 6. e5 Ne4 7. Bd3 c5 8. Nf3 cxd4 9. Nxd4 Nd7 10. Bf4 Qh4 11. g3 Qh5 12. O-O Nxe5 13. Be2 Qg6 14. Nxe4 dxe4 (14... Nc6 {was necessary.} 15. Nxc6 bxc6) 15. Bxe5 f6 16. Bc7 Qf7 17. Nb5 Qg6 18. Bd6 Bxd6 19. Nxd6 e5 20. Qxe4 Qxe4 21. Nxe4 Bd7 22. c5 Be6 23. Nd6 Rfd8 $18 24. Rfd1 Rab8 25. Bf3 f5 26. Bd5 Bxd5 27. Rxd5 b6 28. c6 1-0

[Event "DSOL-KO 2022"]
[Site "Germany"]
[Date "2022.05.19"]
[Round "2.1"]
[White "Kurch, Sebastian"]
[Black "Schneble, Milan"]
[Result "1-0"]
[ECO "E62"]
[WhiteElo "2004"]
[BlackElo "1639"]
[Annotator "TA"]
[PlyCount "63"]
[EventDate "2022.01.31"]
[EventType "team-tourn"]
[EventCountry "GER"]
[SourceTitle "playchess.com"]
[Source "ChessBase"]
[SourceQuality "1"]
[TimeControl "2700+15"]

{[%evp 17,63,73,91,75,107,108,115,110,105,110,106,135,146,147,143,129,166,146,172,170,189,177,379,368,367,366,546,538,670,655,638,374,486,496,746,725,1044,1023,1358,1376,1354,1345,1317,1322,1439,1435,1855,1822]} 1. c4 d6 2. Nc3 Nf6 3. g3 g6 4. Bg2 Bg7 5. Nf3 Nc6 6. d4 Bg4 7. O-O O-O 8. d5 Bxf3 9. exf3 Ne5 10. b3 {E62: King's Indian: Fianchetto: 6...c6 and Panno Variation (6...Nc6) without ...a6.} Nfd7 {[%cal Oe5c4]} 11. Bb2 {Black must now prevent f4.} Nc5 {[#]} 12. Rb1 $1 {White is better.} Ned3 {[#]} 13. Ba1 {Strongly threatening b4.} a5 {[#]} 14. f4 $146 ({Predecessor:} 14. a3 Ne5 15. Ne4 Ned7 16. Bxg7 Kxg7 17. b4 axb4 18. axb4 Na4 19. Ra1 Nab6 20. c5 dxc5 21. bxc5 Rxa1 22. Qxa1+ {1-0 (44) Mack,P-Salonen,J Groningen 1973}) 14... Nb4 15. a3 Nba6 (15... Nbd3 $2 16. Qc2) 16. Re1 {[%cal Bf1e1,Be1e3,Be3e7][%mdl 32]} Nd7 17. Nb5 {[%cal Bc3b5,Bb5d4,Bd4c6][%mdl 32]} Bxa1 18. Rxa1 Rb8 19. Re3 c6 $2 (19... Ra8 {was worth a try.} 20. Qe2 Nac5) 20. dxc6 $18 bxc6 21. Nd4 Qb6 (21... e6 $142 22. Nxc6 Qc7 23. Nxb8 Rxb8) 22. Rxe7 Ndc5 23. Nxc6 Rbc8 24. Nd4 Rb8 25. Rb1 {White is clearly winning.} Nc7 (25... Rbc8 $142 26. Nb5 Ne6) 26. Nc6 Rbc8 27. Qxd6 Ne8 {[#]} 28. Rxe8 $1 Rfxe8 29. Ne7+ Rxe7 30. Qxb6 a4 31. bxa4 Nxa4 32. Qa6 {[%csl LRa4,LRc8] White took control after the opening.  Weighted Error Value: White=0.17 (very precise) /Black=0.54} 1-0

[Event "DSOL-KO 2022"]
[Site "Germany"]
[Date "2022.05.13"]
[Round "2.1"]
[White "Meyer-Dunker, Paul"]
[Black "Heinsohn, Guenther"]
[Result "1/2-1/2"]
[ECO "B90"]
[WhiteElo "1878"]
[BlackElo "1890"]
[Annotator "NA RC COMBH"]
[PlyCount "92"]
[EventDate "2022.01.31"]
[EventType "team-tourn"]
[EventCountry "GER"]
[SourceTitle "playchess.com"]
[Source "ChessBase"]
[SourceQuality "1"]
[WhiteTeam "SK Johanneum Eppendorf I"]
[BlackTeam "TSG Taucha I"]
[TimeControl "2700+15"]

1. e4 c5 2. Nf3 d6 3. d4 cxd4 4. Nxd4 Nf6 5. Nc3 a6 6. Rg1 e5 7. Nb3 Be6 8. g4 h6 9. h4 d5 10. exd5 Nxd5 11. Nxd5 Bxd5 12. Bg2 Bxg2 13. Qxd8+ Kxd8 14. Rxg2 Nc6 15. Be3 Kc7 16. O-O-O Be7 17. h5 Rad8 18. f3 Rxd1+ 19. Kxd1 Rd8+ 20. Rd2 Rxd2+ 21. Kxd2 Nb4 22. a4 Nd5 23. Kd3 Bd6 24. Nd2 b5 25. axb5 axb5 26. Ne4 Be7 27. Nd2 Kc6 28. b3 Bb4 29. Ne4 Bf8 30. c4 Nxe3 31. Kxe3 bxc4 32. bxc4 g6 33. hxg6 fxg6 34. f4 exf4+ 35. Kxf4 Be7 36. Ke5 h5 37. gxh5 gxh5 38. Kf5 h4 39. Kg4 Kd7 40. Nd2 Kc6 41. Ne4 Kd7 42. Nd2 Ke6 43. Nf3 Kd6 44. Nxh4 Bxh4 45. Kxh4 Kc5 46. Kg4 Kxc4 1/2-1/2

[Event "DSOL-KO 2022"]
[Site "Germany"]
[Date "2022.05.13"]
[Round "2.1"]
[White "Pruefer, Friedbert"]
[Black "Schroeder, Christoph"]
[Result "1/2-1/2"]
[ECO "D00"]
[WhiteElo "1831"]
[BlackElo "1839"]
[Annotator "NA RC COMBH"]
[PlyCount "46"]
[EventDate "2022.01.31"]
[EventType "team-tourn"]
[EventCountry "GER"]
[SourceTitle "playchess.com"]
[Source "ChessBase"]
[SourceQuality "1"]
[WhiteTeam "TSG Taucha I"]
[BlackTeam "SK Johanneum Eppendorf I"]
[TimeControl "2700+15"]

1. d4 d5 2. Bf4 Nf6 3. e3 c5 4. dxc5 Qa5+ 5. c3 Qxc5 6. Qd4 Qxd4 7. exd4 Nc6 8. Nf3 Bg4 9. Ne5 Nxe5 10. dxe5 Nd7 11. Na3 a6 12. Bd3 e6 13. f3 Bh5 14. Nc2 Bg6 15. Bxg6 hxg6 16. Nd4 Nc5 17. Ke2 Be7 18. Rhd1 Rc8 19. Rac1 Na4 20. Rc2 b5 21. Kd3 Nb6 22. b3 Kd7 23. h3 Rc7 1/2-1/2

[Event "DSOL-KO 2022"]
[Site "Germany"]
[Date "2022.05.19"]
[Round "2.1"]
[White "Bleisinger, Emil"]
[Black "Christensen, John Christopher"]
[Result "0-1"]
[ECO "B43"]
[WhiteElo "1764"]
[BlackElo "1701"]
[Annotator "NA RC COMBH"]
[PlyCount "52"]
[EventDate "2022.01.31"]
[EventType "team-tourn"]
[EventCountry "GER"]
[SourceTitle "playchess.com"]
[Source "ChessBase"]
[SourceQuality "1"]
[TimeControl "2700+15"]

1. e4 c5 2. Nf3 e6 3. d4 cxd4 4. Nxd4 a6 5. Nc3 Qc7 6. Bd3 Nf6 7. O-O d6 8. Be3 Nbd7 9. Kh1 Be7 10. f4 O-O 11. Qe2 b5 12. Rad1 Nc5 13. a3 Bb7 14. Bc1 Rac8 15. f5 e5 16. Nf3 Kh8 17. h3 Rfe8 18. g4 d5 19. exd5 Nxd5 20. Ne4 f6 21. Kh2 Nxd3 22. cxd3 b4 23. axb4 Nxb4 24. g5 Bd5 25. gxf6 Bxf6 26. Bf4 exf4 0-1

[Event "DSOL-KO 2022"]
[Site "Germany"]
[Date "2022.05.19"]
[Round "2.1"]
[White "Herrmany, Marius"]
[Black "Wolf, Christian"]
[Result "0-1"]
[ECO "D35"]
[WhiteElo "1707"]
[BlackElo "1666"]
[Annotator "NA RC COMBH"]
[PlyCount "70"]
[EventDate "2022.01.31"]
[EventType "team-tourn"]
[EventCountry "GER"]
[SourceTitle "playchess.com"]
[Source "ChessBase"]
[SourceQuality "1"]
[TimeControl "2700+15"]

1. d4 Nf6 2. c4 e6 3. Nc3 d5 4. Bf4 c5 5. e3 cxd4 6. exd4 Bd6 7. Be3 dxc4 8. Bxc4 O-O 9. Nge2 b6 10. O-O Qc7 11. Qd3 Bxh2+ 12. Kh1 Bd6 13. Nb5 Qe7 14. Bg5 Nbd7 15. Qf3 Rb8 16. Nxd6 Qxd6 17. Bf4 e5 18. dxe5 Nxe5 19. Qg3 Nfd7 20. Rad1 Qf6 21. Bb5 Rb7 22. Ba6 Rc7 23. Rxd7 Nxd7 24. Rd1 Bxa6 25. Bxc7 Bxe2 26. Rxd7 Qxb2 27. Be5 Qc1+ 28. Kh2 Qh6+ 29. Kg1 Qc1+ 30. Kh2 Qh6+ 31. Kg1 Rc8 32. Bf4 Qh5 33. Rxa7 Rd8 34. Bd6 Qh6 35. Qc3 Qxd6 0-1